[Event "Belt Road Women 2019"]
[Site "Shaoxing"]
[Date "2019.07.09"]
[Round "2.9"]
[White "Khademalsharieh, Sarasadat"]
[Black "Gu, Tianlu"]
[Result "1/2-1/2"]
[ECO "A13"]
[WhiteElo "2481"]
[BlackElo "2205"]
[Annotator "ChessBase"]
[PlyCount "45"]
[EventDate "2019.07.08"]
[EventType "swiss"]
[EventCountry "CHN"]
[SourceTitle "playchess.com"]
[Source "ChessBase"]
[SourceQuality "1"]
[TimeControl "5400+30"]

1. Nf3 {[%emt 0:00:00]} d5 {[%emt 0:00:00]} 2. e3 {[%emt 0:00:00]} Nf6 {[%emt 0:00:41]} 3. c4 {[%emt 0:00:19]} e6 {[%emt 0:00:21]} 4. Nc3 {[%emt 0:01:21]} Be7 {[%emt 0:02:26]} 5. b3 {[%emt 0:00:18]} O-O {[%emt 0:00:22]} 6. Bb2 {[%emt 0:00:07]} c5 {[%emt 0:00:34]} 7. cxd5 {[%emt 0:01:41]} Nxd5 {[%emt 0:02:53]} 8. Qb1 {[%emt 0:01:41]} Nxc3 {[%emt 0:05:05]} 9. Bxc3 {[%emt 0:00:13]} Bf6 {[%emt 0:00:28]} 10. Bd3 {[%emt 0:07:44]} h6 {[%emt 0:03:53]} 11. Bxf6 {[%emt 0:07:55]} Qxf6 {[%emt 0:01:22]} 12. O-O {[%emt 0:00:05]} Qe7 {[%emt 0:01:26]} 13. Qc2 {[%emt 0:07:56]} b6 {[%emt 0:02:08]} 14. Bh7+ {[%emt 0:06:50]} Kh8 {[%emt 0:00:08]} 15. Be4 {[%emt 0:00:03]} Bb7 {[%emt 0:00:07]} 16. Ne5 {[%emt 0:00:46]} Na6 {[%emt 0:04:40]} 17. a3 {[%emt 0:02:47]} Rad8 {[%emt 0:06:00]} 18. Bxb7 {[%emt 0:03:26]} Qxb7 {[%emt 0:00:06]} 19. f4 {[%emt 0:00:21]} Qd5 {[%emt 0:03:17]} 20. Rf2 {[%emt 0:00:15]} Nb8 {[%emt 0:06:35]} 21. b4 {[%emt 0:05:13]} Nd7 {[%emt 0:01:26]} 22. Nxd7 {[%emt 0:03:19]} Rxd7 {[%emt 0:00:07]} 23. bxc5 {[%emt 0:03:08]} 1/2-1/2

[Event "Belt Road Women 2019"]
[Site "Shaoxing"]
[Date "2019.07.09"]
[Round "2.10"]
[White "Girya, Olga"]
[Black "Song, Yuxin"]
[Result "1-0"]
[ECO "E16"]
[WhiteElo "2457"]
[BlackElo "2277"]
[Annotator "ChessBase"]
[PlyCount "131"]
[EventDate "2019.07.08"]
[EventType "swiss"]
[EventCountry "CHN"]
[SourceTitle "playchess.com"]
[Source "ChessBase"]
[SourceQuality "1"]
[TimeControl "5400+30"]

1. d4 {[%emt 0:00:00]} Nf6 {[%emt 0:00:00]} 2. c4 {[%emt 0:00:00]} e6 {[%emt 0:00:00]} 3. Nf3 {[%emt 0:00:00]} b6 {[%emt 0:00:00]} 4. g3 {[%emt 0:00:00]} Bb7 {[%emt 0:00:07]} 5. Bg2 {[%emt 0:00:00]} Bb4+ {[%emt 0:00:10]} 6. Bd2 {[%emt 0:00:03]} Be7 {[%emt 0:00:07]} 7. Nc3 {[%emt 0:00:21]} c6 {[%emt 0:00:09]} 8. Bf4 {[%emt 0:00:12]} d5 {[%emt 0:08:34]} 9. cxd5 {[%emt 0:00:10]} cxd5 {[%emt 0:00:38]} 10. Nb5 {[%emt 0:00:27]} Na6 {[%emt 0:01:33]} 11. O-O {[%emt 0:00:22]} O-O {[%emt 0:04:56]} 12. Rc1 {[%emt 0:00:38]} Nh5 {[%emt 0:10:07]} 13. Bd2 {[%emt 0:09:55]} Nb4 {[%emt 0:12:04]} 14. Qb3 {[%emt 0:11:00]} a5 {[%emt 0:01:10]} 15. a3 {[%emt 0:03:38]} Nc6 {[%emt 0:05:48]} 16. Ne5 {[%emt 0:02:38]} Rc8 {[%emt 0:00:33]} 17. Nxc6 {[%emt 0:01:45]} Rxc6 {[%emt 0:00:09]} 18. Na7 {[%emt 0:04:07]} Rxc1 {[%emt 0:12:29]} 19. Rxc1 {[%emt 0:00:06]} Bd6 {[%emt 0:02:25]} 20. Bxa5 {[%emt 0:06:45]} bxa5 {[%emt 0:03:18]} 21. Qxb7 {[%emt 0:00:11]} Qb8 {[%emt 0:01:31]} 22. Qxb8 {[%emt 0:00:40]} Rxb8 {[%emt 0:00:11]} 23. Rc8+ {[%emt 0:01:04]} Rxc8 {[%emt 0:02:36]} 24. Nxc8 {[%emt 0:00:02]} Bc7 {[%emt 0:00:14]} 25. e3 {[%emt 0:06:41]} Nf6 {[%emt 0:02:38]} 26. Kf1 {[%emt 0:02:07]} Kf8 {[%emt 0:01:02]} 27. Ke2 {[%emt 0:00:52]} Ke8 {[%emt 0:03:00]} 28. Na7 {[%emt 0:01:23]} Kd7 {[%emt 0:01:13]} 29. Nb5 {[%emt 0:00:11]} Bb8 {[%emt 0:05:18]} 30. h3 {[%emt 0:02:36]} Kc6 {[%emt 0:01:04]} 31. Nc3 {[%emt 0:00:04]} h5 {[%emt 0:01:56]} 32. Kd3 {[%emt 0:04:05]} Bd6 {[%emt 0:00:54]} 33. Kc2 {[%emt 0:02:52]} g5 {[%emt 0:01:38]} 34. Bf3 {[%emt 0:02:53]} h4 {[%emt 0:05:43]} 35. g4 {[%emt 0:06:07]} Be7 {[%emt 0:06:19]} 36. Kd3 {[%emt 0:03:10]} Bd6 {[%emt 0:00:25]} 37. Bd1 {[%emt 0:01:37]} Kb6 {[%emt 0:02:29]} 38. Ba4 {[%emt 0:00:09]} Ng8 {[%emt 0:02:22]} 39. Be8 {[%emt 0:03:31]} Nh6 {[%emt 0:00:06]} 40. f3 {[%emt 0:00:20]} Be7 {[%emt 0:02:09]} 41. Na4+ {[%emt 0:05:50]} Kc7 {[%emt 0:00:07]} 42. Nc5 {[%emt 0:00:45]} e5 {[%emt 0:01:40]} 43. Nb3 {[%emt 0:08:20]} exd4 {[%emt 0:00:15]} 44. Nxd4 {[%emt 0:00:51]} Kb6 {[%emt 0:00:19]} 45. Ne2 {[%emt 0:04:16]} Kc5 {[%emt 0:00:40]} 46. Nc3 {[%emt 0:00:36]} f5 {[%emt 0:00:01]} 47. b4+ {[%emt 0:01:44]} axb4 {[%emt 0:00:00]} 48. axb4+ {[%emt 0:00:03]} Kd6 {[%emt 0:00:01]} 49. Nb5+ {[%emt 0:01:54]} Ke5 {[%emt 0:00:34]} 50. Nd4 {[%emt 0:00:01]} Bxb4 {[%emt 0:02:40]} 51. Nc6+ {[%emt 0:00:14]} Kd6 {[%emt 0:00:01]} 52. Nxb4 {[%emt 0:00:06]} fxg4 {[%emt 0:00:00]} 53. fxg4 {[%emt 0:00:10]} Kc5 {[%emt 0:01:16]} 54. Kc3 {[%emt 0:00:13]} Ng8 {[%emt 0:00:12]} 55. Nxd5 {[%emt 0:02:57]} Kxd5 {[%emt 0:00:07]} 56. Bf7+ {[%emt 0:00:03]} Ke4 {[%emt 0:00:03]} 57. Bxg8 {[%emt 0:00:03]} Kxe3 {[%emt 0:00:07]} 58. Kc4 {[%emt 0:00:13]} Ke4 {[%emt 0:00:38]} 59. Bd5+ {[%emt 0:00:47]} Ke5 {[%emt 0:00:11]} 60. Kc5 {[%emt 0:00:09]} Kf4 {[%emt 0:00:08]} 61. Kd4 {[%emt 0:00:05]} Kg3 {[%emt 0:00:04]} 62. Ke5 {[%emt 0:00:07]} Kxh3 {[%emt 0:00:04]} 63. Kf5 {[%emt 0:00:03]} Kg3 {[%emt 0:00:08]} 64. Kxg5 {[%emt 0:00:04]} h3 {[%emt 0:00:08]} 65. Kf5 {[%emt 0:00:11]} h2 {[%emt 0:00:05]} 66. g5 {[%emt 0:00:06]} 1-0

[Event "Belt Road Women 2019"]
[Site "Shaoxing"]
[Date "2019.07.09"]
[Round "2.11"]
[White "Li, Xueyi"]
[Black "Batsiashvili, Nino"]
[Result "1-0"]
[ECO "E04"]
[WhiteElo "2330"]
[BlackElo "2433"]
[Annotator "NA"]
[PlyCount "143"]
[EventDate "2019.07.08"]
[EventType "swiss"]
[EventCountry "CHN"]
[SourceTitle "playchess.com"]
[Source "ChessBase"]
[SourceQuality "1"]
[TimeControl "5400+30"]

1. d4 {[%emt 0:00:00]} d5 {[%emt 0:00:00]} 2. c4 {[%emt 0:00:00]} e6 {[%emt 0:00:00]} 3. Nf3 {[%emt 0:00:19]} Nf6 {[%emt 0:00:00]} 4. g3 {[%emt 0:00:16]} dxc4 {[%emt 0:00:00]} 5. Bg2 {[%emt 0:00:08]} a6 {[%emt 0:00:00]} 6. O-O {[%emt 0:00:09]} Nc6 {[%emt 0:00:01]} 7. Nbd2 {[%emt 0:00:25]} Nxd4 {[%emt 0:02:08]} 8. Nxc4 {[%emt 0:00:09]} Nxf3+ {[%emt 0:01:34]} 9. Bxf3 {[%emt 0:00:15]} Qxd1 {[%emt 0:00:06]} 10. Rxd1 {[%emt 0:00:05]} Be7 {[%emt 0:03:39]} 11. Na5 {[%emt 0:00:49]} Nd5 {[%emt 0:03:21]} 12. e4 {[%emt 0:00:10]} Nf6 {[%emt 0:03:41]} 13. Bf4 {[%emt 0:00:20]} Bd8 {[%emt 0:16:27]} 14. Rd2 {[%emt 0:07:42]} O-O {[%emt 0:22:03]} 15. Rad1 {[%emt 0:00:51]} Be7 {[%emt 0:01:29]} 16. Bxc7 {[%emt 0:00:46]} e5 {[%emt 0:03:53]} 17. Bxe5 {[%emt 0:16:54]} Be6 {[%emt 0:03:40]} 18. Nb3 {[%emt 0:01:02]} Rfe8 {[%emt 0:04:18]} 19. Bc3 {[%emt 0:00:55]} Rab8 {[%emt 0:05:32]} 20. Nd4 {[%emt 0:08:20]} Bg4 {[%emt 0:03:30]} 21. Bxg4 {[%emt 0:03:23]} Nxg4 {[%emt 0:00:01]} 22. Nf5 {[%emt 0:00:58]} Bf8 {[%emt 0:00:51]} 23. f3 {[%emt 0:05:00]} Ne5 {[%emt 0:00:39]} 24. Kg2 {[%emt 0:01:43]} Nc4 {[%emt 0:03:34]} 25. Re2 {[%emt 0:02:38]} b5 {[%emt 0:05:53]} 26. b3 {[%emt 0:01:20]} Na3 {[%emt 0:01:18]} 27. Bb2 {[%emt 0:09:58]} b4 {[%emt 0:00:04]} 28. Bxa3 {[%emt 0:00:30]} bxa3 {[%emt 0:00:02]} 29. Nd6 {[%emt 0:00:39]} Red8 {[%emt 0:03:08]} 30. Red2 {[%emt 0:00:10]} a5 {[%emt 0:00:51]} 31. Nc4 {[%emt 0:01:34]} Rdc8 {[%emt 0:04:37]} 32. Nd6 {[%emt 0:07:42]} Rc6 {[%emt 0:01:58]} 33. e5 {[%emt 0:02:19]} a4 {[%emt 0:01:25]} 34. bxa4 {[%emt 0:00:55]} Ra6 {[%emt 0:00:56]} 35. f4 {[%emt 0:14:12]} Rxa4 {[%emt 0:00:26]} 36. Kf3 {[%emt 0:00:00]} h6 {[%emt 0:05:29]} 37. Rc1 {[%emt 0:02:36]} Rb2 {[%emt 0:00:34]} 38. Ke3 {[%emt 0:04:59]} Rxd2 {[%emt 0:00:53]} 39. Kxd2 {[%emt 0:00:06]} Bxd6 {[%emt 0:00:22]} 40. exd6 {[%emt 0:00:05]} Rd4+ {[%emt 0:00:03]} 41. Ke3 {[%emt 0:00:05]} Rxd6 {[%emt 0:00:04]} 42. Rc8+ {[%emt 0:00:04]} Kh7 {[%emt 0:00:09]} 43. Ra8 {[%emt 0:00:05]} Rb6 {[%emt 0:00:37]} 44. Rxa3 {[%emt 0:00:07]} Rb2 {[%emt 0:00:01]} 45. h3 {[%emt 0:02:29]} Rh2 {[%emt 0:04:58]} 46. Kd4 {[%emt 0:01:02]} Rxh3 {[%emt 0:00:00]} 47. Rb3 {[%emt 0:02:42]} Rh2 {[%emt 0:00:00]} 48. a4 {[%emt 0:00:43]} Ra2 {[%emt 0:00:00]} 49. Rb4 {[%emt 0:00:05]} h5 {[%emt 0:00:00]} 50. Kc5 {[%emt 0:00:12]} Ra3 {[%emt 0:00:00]} 51. Kb6 {[%emt 0:01:17]} Rxg3 {[%emt 0:00:00]} 52. a5 {[%emt 0:00:10]} Ra3 {[%emt 0:00:00]} 53. Rb5 {[%emt 0:01:42]} h4 {[%emt 0:01:09]} 54. a6 {[%emt 0:02:31]} h3 {[%emt 0:00:14]} 55. a7 {[%emt 0:00:04]} Rxa7 {[%emt 0:00:51]} 56. Kxa7 {[%emt 0:00:14]} Kg6 {[%emt 0:00:00]} 57. Rg5+ {[%emt 0:00:26]} Kh6 {[%emt 0:01:23]} 58. Rg3 {[%emt 0:00:10]} Kh5 {[%emt 0:00:09]} 59. Rxg7 {[%emt 0:00:18]} f5 {[%emt 0:00:32]} 60. Kb6 {[%emt 0:00:51]} h2 {[%emt 0:00:17]} 61. Rh7+ {[%emt 0:00:30]} Kg4 {[%emt 0:00:01]} 62. Kc5 {[%emt 0:01:59]} Kxf4 {[%emt 0:00:01]} 63. Rxh2 {[%emt 0:00:09]} Ke3 {[%emt 0:00:22]} 64. Rh3+ {[%emt 0:00:58]} Ke4 {[%emt 0:00:01]} 65. Kc4 {[%emt 0:00:14]} f4 {[%emt 0:02:00]} 66. Rh8 {[%emt 0:00:05]} Ke3 {[%emt 0:01:03]} 67. Kc3 {[%emt 0:00:05]} f3 {[%emt 0:00:31]} 68. Re8+ {[%emt 0:00:07]} Kf2 {[%emt 0:00:15]} 69. Kd2 {[%emt 0:00:08]} Kg1 {[%emt 0:00:16]} 70. Ke3 {[%emt 0:00:43]} f2 {[%emt 0:00:07]} 71. Rg8+ {[%emt 0:00:06]} Kf1 {[%emt 0:00:08]} 72. Rf8 {[%emt 0:00:06]} 1-0

[Event "Belt Road Women 2019"]
[Site "Shaoxing"]
[Date "2019.07.09"]
[Round "2.12"]
[White "Bai, Xue"]
[Black "Tan, Zhongyi"]
[Result "0-1"]
[ECO "C82"]
[WhiteElo "2029"]
[BlackElo "2511"]
[Annotator "ChessBase"]
[PlyCount "44"]
[EventDate "2019.07.08"]
[EventType "swiss"]
[EventCountry "CHN"]
[SourceTitle "playchess.com"]
[Source "ChessBase"]
[SourceQuality "1"]
[TimeControl "5400+30"]

1. e4 {[%emt 0:00:00]} e5 {[%emt 0:00:00]} 2. Nf3 {[%emt 0:00:00]} Nc6 {[%emt 0:00:00]} 3. Bb5 {[%emt 0:00:00]} a6 {[%emt 0:01:43]} 4. Ba4 {[%emt 0:00:00]} Nf6 {[%emt 0:00:04]} 5. O-O {[%emt 0:00:07]} Nxe4 {[%emt 0:02:11]} 6. d4 {[%emt 0:02:03]} b5 {[%emt 0:00:05]} 7. Bb3 {[%emt 0:00:07]} d5 {[%emt 0:00:04]} 8. dxe5 {[%emt 0:01:35]} Be6 {[%emt 0:00:04]} 9. c3 {[%emt 0:01:10]} Bc5 {[%emt 0:04:01]} 10. Qd3 {[%emt 0:07:13]} O-O {[%emt 0:07:27]} 11. Nbd2 {[%emt 0:04:32]} f5 {[%emt 0:05:58]} 12. exf6 {[%emt 0:00:49]} Nxf2 {[%emt 0:02:20]} 13. Rxf2 {[%emt 0:00:58]} Qxf6 {[%emt 0:04:00]} 14. Qe2 {[%emt 0:20:11]} Rae8 {[%emt 0:12:13]} 15. Nd4 {[%emt 0:18:02]} Nxd4 {[%emt 0:00:14]} 16. cxd4 {[%emt 0:00:07]} Qxd4 {[%emt 0:11:58]} 17. Nf3 {[%emt 0:00:31]} Rxf3 {[%emt 0:16:36]} 18. gxf3 {[%emt 0:02:45]} c6 {[%emt 0:01:10]} 19. Bd2 {[%emt 0:26:45]} Bd7 {[%emt 0:01:45]} 20. Re1 {[%emt 0:00:20]} Rxe2 {[%emt 0:00:43]} 21. Rexe2 {[%emt 0:00:02]} Qd3 {[%emt 0:01:34]} 22. Kg2 {[%emt 0:01:25]} Qg6+ {[%emt 0:00:05]} 0-1

[Event "Belt Road Women 2019"]
[Site "Shaoxing"]
[Date "2019.07.09"]
[Round "2.13"]
[White "Lei, Tingjie"]
[Black "Yan, Tianqi"]
[Result "1-0"]
[ECO "B41"]
[WhiteElo "2505"]
[BlackElo "2034"]
[Annotator "ChessBase"]
[PlyCount "80"]
[EventDate "2019.07.08"]
[EventType "swiss"]
[EventCountry "CHN"]
[SourceTitle "playchess.com"]
[Source "ChessBase"]
[SourceQuality "1"]
[TimeControl "5400+30"]

1. e4 {[%emt 0:00:00]} c5 {[%emt 0:00:00]} 2. Nf3 {[%emt 0:00:00]} a6 {[%emt 0:00:00]} 3. c4 {[%emt 0:00:25]} e6 {[%emt 0:00:00]} 4. d4 {[%emt 0:00:14]} cxd4 {[%emt 0:00:08]} 5. Nxd4 {[%emt 0:00:02]} Nf6 {[%emt 0:00:46]} 6. Nc3 {[%emt 0:00:13]} Bb4 {[%emt 0:00:30]} 7. Qd3 {[%emt 0:00:16]} Nc6 {[%emt 0:03:33]} 8. Nxc6 {[%emt 0:00:10]} dxc6 {[%emt 0:00:11]} 9. Qxd8+ {[%emt 0:00:17]} Kxd8 {[%emt 0:00:03]} 10. e5 {[%emt 0:00:08]} Ne4 {[%emt 0:00:09]} 11. a3 {[%emt 0:00:12]} Bxc3+ {[%emt 0:00:19]} 12. bxc3 {[%emt 0:00:04]} b6 {[%emt 0:01:18]} 13. h4 {[%emt 0:10:33]} a5 {[%emt 0:12:02]} 14. Rh3 {[%emt 0:03:52]} Ba6 {[%emt 0:08:48]} 15. Re3 {[%emt 0:12:31]} Nc5 {[%emt 0:12:53]} 16. Rg3 {[%emt 0:00:06]} Nd7 {[%emt 0:13:19]} 17. Rxg7 {[%emt 0:03:48]} Nxe5 {[%emt 0:03:25]} 18. Bf4 {[%emt 0:10:09]} Ng6 {[%emt 0:00:58]} 19. Bg5+ {[%emt 0:10:44]} Ke8 {[%emt 0:00:33]} 20. Rb1 {[%emt 0:02:20]} Rb8 {[%emt 0:02:01]} 21. Bf6 {[%emt 0:01:59]} Ne7 {[%emt 0:03:01]} 22. Rg5 {[%emt 0:00:06]} Rg8 {[%emt 0:00:57]} 23. Rxa5 {[%emt 0:00:49]} bxa5 {[%emt 0:01:23]} 24. Rxb8+ {[%emt 0:01:54]} Kd7 {[%emt 0:00:04]} 25. Rb6 {[%emt 0:01:35]} Ra8 {[%emt 0:01:37]} 26. Bd3 {[%emt 0:03:27]} Nc8 {[%emt 0:01:50]} 27. Rb1 {[%emt 0:01:05]} Nd6 {[%emt 0:01:13]} 28. Rd1 {[%emt 0:00:06]} c5 {[%emt 0:00:31]} 29. Bxh7 {[%emt 0:01:39]} Rb8 {[%emt 0:03:54]} 30. Be5 {[%emt 0:00:19]} Rb6 {[%emt 0:00:08]} 31. h5 {[%emt 0:00:11]} Bxc4 {[%emt 0:00:43]} 32. h6 {[%emt 0:00:24]} Bd5 {[%emt 0:00:23]} 33. Bxd6 {[%emt 0:01:09]} Rxd6 {[%emt 0:00:08]} 34. c4 {[%emt 0:00:15]} Ke7 {[%emt 0:00:25]} 35. Bc2 {[%emt 0:01:14]} Kf6 {[%emt 0:00:21]} 36. cxd5 {[%emt 0:02:32]} exd5 {[%emt 0:00:02]} 37. Rd3 {[%emt 0:00:08]} d4 {[%emt 0:00:34]} 38. Rg3 {[%emt 0:00:59]} Re6+ {[%emt 0:00:03]} 39. Kd2 {[%emt 0:00:20]} c4 {[%emt 0:00:04]} 40. h7 {[%emt 0:00:07]} c3+ {[%emt 0:00:05]} 1-0

[Event "Belt Road Women 2019"]
[Site "Shaoxing"]
[Date "2019.07.09"]
[Round "2.14"]
[White "Zhang, Xiao"]
[Black "Du, Yuxin"]
[Result "1/2-1/2"]
[ECO "D30"]
[WhiteElo "2259"]
[BlackElo "2015"]
[Annotator "NA"]
[PlyCount "104"]
[EventDate "2019.07.08"]
[EventType "swiss"]
[EventCountry "CHN"]
[SourceTitle "playchess.com"]
[Source "ChessBase"]
[SourceQuality "1"]
[TimeControl "5400+30"]

1. d4 {[%emt 0:00:00]} Nf6 {[%emt 0:00:00]} 2. c4 {[%emt 0:00:00]} e6 {[%emt 0:00:00]} 3. Nf3 {[%emt 0:00:00]} d5 {[%emt 0:04:42]} 4. e3 {[%emt 0:00:31]} Bb4+ {[%emt 0:01:35]} 5. Bd2 {[%emt 0:01:17]} Be7 {[%emt 0:00:29]} 6. Nc3 {[%emt 0:00:08]} O-O {[%emt 0:03:05]} 7. c5 {[%emt 0:02:08]} b6 {[%emt 0:08:12]} 8. b4 {[%emt 0:00:28]} Bb7 {[%emt 0:03:02]} 9. Bd3 {[%emt 0:04:42]} Ne4 {[%emt 0:05:07]} 10. O-O {[%emt 0:00:38]} Nd7 {[%emt 0:07:39]} 11. Qe2 {[%emt 0:05:32]} a5 {[%emt 0:10:45]} 12. a3 {[%emt 0:00:24]} axb4 {[%emt 0:12:58]} 13. axb4 {[%emt 0:00:16]} bxc5 {[%emt 0:02:53]} 14. bxc5 {[%emt 0:01:58]} Bf6 {[%emt 0:07:44]} 15. Na2 {[%emt 0:16:32]} c6 {[%emt 0:11:36]} 16. Bb4 {[%emt 0:03:43]} e5 {[%emt 0:04:06]} 17. Rfb1 {[%emt 0:02:28]} exd4 {[%emt 0:04:22]} 18. exd4 {[%emt 0:00:10]} Re8 {[%emt 0:00:26]} 19. Qc2 {[%emt 0:01:44]} Ba6 {[%emt 0:01:37]} 20. Be1 {[%emt 0:01:00]} Bxd3 {[%emt 0:00:37]} 21. Qxd3 {[%emt 0:00:03]} Qc7 {[%emt 0:01:11]} 22. Nc3 {[%emt 0:01:38]} Nxc3 {[%emt 0:01:15]} 23. Bxc3 {[%emt 0:00:12]} Reb8 {[%emt 0:01:14]} 24. Ne1 {[%emt 0:03:42]} h6 {[%emt 0:02:15]} 25. Nc2 {[%emt 0:01:06]} Rxb1+ {[%emt 0:00:57]} 26. Rxb1 {[%emt 0:00:02]} Nf8 {[%emt 0:03:21]} 27. g3 {[%emt 0:00:31]} Rb8 {[%emt 0:01:18]} 28. Nb4 {[%emt 0:02:44]} Qb7 {[%emt 0:00:35]} 29. f4 {[%emt 0:02:21]} Ne6 {[%emt 0:00:16]} 30. Rb2 {[%emt 0:01:09]} Qc8 {[%emt 0:01:00]} 31. Kg2 {[%emt 0:02:20]} Ra8 {[%emt 0:00:25]} 32. Qd2 {[%emt 0:04:43]} Qc7 {[%emt 0:00:44]} 33. Nc2 {[%emt 0:01:39]} Rb8 {[%emt 0:00:27]} 34. Ne3 {[%emt 0:03:53]} Rxb2 {[%emt 0:00:19]} 35. Qxb2 {[%emt 0:00:03]} Qc8 {[%emt 0:00:33]} 36. Kf3 {[%emt 0:01:36]} Nd8 {[%emt 0:00:37]} 37. Qb1 {[%emt 0:02:25]} Qb7 {[%emt 0:00:32]} 38. Qa2 {[%emt 0:01:05]} Ne6 {[%emt 0:00:28]} 39. Qa1 {[%emt 0:06:53]} Qb5 {[%emt 0:00:26]} 40. Qa8+ {[%emt 0:03:41]} Kh7 {[%emt 0:00:07]} 41. Qe8 {[%emt 0:00:22]} Qd3 {[%emt 0:00:51]} 42. Qxf7 {[%emt 0:00:57]} Nxd4+ {[%emt 0:00:27]} 43. Bxd4 {[%emt 0:01:02]} Bxd4 {[%emt 0:00:06]} 44. Qe7 {[%emt 0:02:44]} Qc3 {[%emt 0:01:08]} 45. Qe6 {[%emt 0:00:20]} Qd3 {[%emt 0:00:31]} 46. Qe7 {[%emt 0:00:05]} Qc3 {[%emt 0:00:25]} 47. Qe6 {[%emt 0:00:04]} Qxe3+ {[%emt 0:00:33]} 48. Qxe3 {[%emt 0:00:05]} Bxe3 {[%emt 0:00:04]} 49. Kxe3 {[%emt 0:00:02]} Kg6 {[%emt 0:00:32]} 50. g4 {[%emt 0:00:55]} Kf6 {[%emt 0:00:30]} 51. Kd4 {[%emt 0:00:44]} Ke6 {[%emt 0:00:38]} 52. Ke3 {[%emt 0:00:31]} g6 {[%emt 0:00:06] Ke4 Ke5+} 1/2-1/2

[Event "Belt Road Women 2019"]
[Site "Shaoxing"]
[Date "2019.07.09"]
[Round "2.15"]
[White "Fominykh, Maria"]
[Black "Zhang, Yuxuan"]
[Result "1-0"]
[ECO "E62"]
[WhiteElo "2243"]
[BlackElo "1987"]
[Annotator "NA"]
[PlyCount "91"]
[EventDate "2019.07.08"]
[EventType "swiss"]
[EventCountry "CHN"]
[SourceTitle "playchess.com"]
[Source "ChessBase"]
[SourceQuality "1"]
[TimeControl "5400+30"]

1. d4 {[%emt 0:00:00]} Nf6 {[%emt 0:00:00]} 2. Nf3 {[%emt 0:00:00]} g6 {[%emt 0:00:00]} 3. c4 {[%emt 0:00:00]} Bg7 {[%emt 0:00:00]} 4. g3 {[%emt 0:00:00]} O-O {[%emt 0:00:06]} 5. Bg2 {[%emt 0:00:00]} d6 {[%emt 0:00:08]} 6. Nc3 {[%emt 0:00:32]} Nc6 {[%emt 0:00:16]} 7. O-O {[%emt 0:00:07]} Bf5 {[%emt 0:00:06]} 8. Nh4 {[%emt 0:00:32]} Bd7 {[%emt 0:01:01]} 9. f4 {[%emt 0:00:05]} Na5 {[%emt 0:06:20]} 10. b3 {[%emt 0:03:10]} c5 {[%emt 0:00:25]} 11. dxc5 {[%emt 0:00:51]} dxc5 {[%emt 0:00:55]} 12. Bd2 {[%emt 0:01:37]} Bc6 {[%emt 0:04:33]} 13. Nd5 {[%emt 0:00:34]} e6 {[%emt 0:16:35]} 14. Bxa5 {[%emt 0:08:03]} Qxa5 {[%emt 0:00:06]} 15. Ne7+ {[%emt 0:00:24]} Kh8 {[%emt 0:00:08]} 16. Nxc6 {[%emt 0:13:33]} bxc6 {[%emt 0:00:06]} 17. e4 {[%emt 0:14:31]} Rad8 {[%emt 0:03:05]} 18. Qe2 {[%emt 0:21:39]} e5 {[%emt 0:21:04]} 19. Nf3 {[%emt 0:15:01]} exf4 {[%emt 0:00:00]} 20. e5 {[%emt 0:00:00]} Rde8 {[%emt 0:00:00]} 21. gxf4 {[%emt 0:07:02]} Nh5 {[%emt 0:00:01]} 22. Qe3 {[%emt 0:04:04]} Bh6 {[%emt 0:01:29]} 23. Ne1 {[%emt 0:02:54]} f6 {[%emt 0:04:24]} 24. e6 {[%emt 0:01:13]} Ng7 {[%emt 0:01:44]} 25. Qh3 {[%emt 0:01:35]} Nh5 {[%emt 0:00:59]} 26. Bxc6 {[%emt 0:01:10]} Re7 {[%emt 0:01:23]} 27. f5 {[%emt 0:01:51]} Qd2 {[%emt 0:01:20]} 28. Ng2 {[%emt 0:00:48]} Ng7 {[%emt 0:07:28]} 29. fxg6 {[%emt 0:00:47]} hxg6 {[%emt 0:07:01]} 30. Bd5 {[%emt 0:00:27]} f5 {[%emt 0:01:00]} 31. Nf4 {[%emt 0:00:53]} Kh7 {[%emt 0:00:14]} 32. Rf2 {[%emt 0:01:38]} Qd4 {[%emt 0:00:37]} 33. Raf1 {[%emt 0:00:21]} g5 {[%emt 0:01:26]} 34. Ne2 {[%emt 0:00:16]} Qe5 {[%emt 0:00:13]} 35. Ng3 {[%emt 0:00:47]} Kg6 {[%emt 0:04:54]} 36. Rxf5 {[%emt 0:00:33]} Nxf5 {[%emt 0:02:16]} 37. Be4 {[%emt 0:00:24]} Qd4+ {[%emt 0:01:26]} 38. Kh1 {[%emt 0:00:35]} Qe5 {[%emt 0:00:48]} 39. Bxf5+ {[%emt 0:00:44]} Kg7 {[%emt 0:00:29]} 40. Qh5 {[%emt 0:00:43]} Rf6 {[%emt 0:00:40]} 41. Qd1 {[%emt 0:00:24]} Rf8 {[%emt 0:03:02]} 42. Qd5 {[%emt 0:00:07]} Qc7 {[%emt 0:01:59]} 43. Ne4 {[%emt 0:00:30]} Rc8 {[%emt 0:03:32]} 44. Bg4 {[%emt 0:00:33]} Qc6 {[%emt 0:01:35]} 45. Nd6 {[%emt 0:00:45]} Qxd5+ {[%emt 0:01:07]} 46. cxd5 {[%emt 0:00:01]} 1-0

[Event "Belt Road Women 2019"]
[Site "Shaoxing"]
[Date "2019.07.09"]
[Round "2.16"]
[White "Zhang, Lanlin"]
[Black "Peng, Tianlu"]
[Result "1-0"]
[ECO "B90"]
[WhiteElo "2195"]
[BlackElo "1901"]
[Annotator "NA"]
[PlyCount "71"]
[EventDate "2019.07.08"]
[EventType "swiss"]
[EventCountry "CHN"]
[SourceTitle "playchess.com"]
[Source "ChessBase"]
[SourceQuality "1"]
[TimeControl "5400+30"]

1. e4 {[%emt 0:00:00]} c5 {[%emt 0:00:00]} 2. Nf3 {[%emt 0:00:00]} d6 {[%emt 0:00:00]} 3. d4 {[%emt 0:00:00]} cxd4 {[%emt 0:00:00]} 4. Nxd4 {[%emt 0:03:57]} Nf6 {[%emt 0:00:23]} 5. Nc3 {[%emt 0:00:04]} a6 {[%emt 0:00:23]} 6. h3 {[%emt 0:00:16]} g6 {[%emt 0:00:16]} 7. g4 {[%emt 0:05:10]} Bg7 {[%emt 0:02:18]} 8. Be3 {[%emt 0:02:23]} e5 {[%emt 0:05:23]} 9. Nb3 {[%emt 0:01:28]} Be6 {[%emt 0:02:11]} 10. g5 {[%emt 0:01:08]} Nh5 {[%emt 0:00:25]} 11. Nd5 {[%emt 0:00:13]} Nd7 {[%emt 0:07:17]} 12. c3 {[%emt 0:00:22]} O-O {[%emt 0:07:14]} 13. Be2 {[%emt 0:01:19]} Bxd5 {[%emt 0:11:42]} 14. Qxd5 {[%emt 0:02:10]} Nf4 {[%emt 0:00:25]} 15. Bxf4 {[%emt 0:04:16]} exf4 {[%emt 0:00:10]} 16. Qxd6 {[%emt 0:00:04]} Be5 {[%emt 0:09:05]} 17. Qd3 {[%emt 0:02:43]} Qe7 {[%emt 0:01:40]} 18. h4 {[%emt 0:01:29]} Rfd8 {[%emt 0:00:58]} 19. O-O-O {[%emt 0:03:40]} b5 {[%emt 0:07:54]} 20. Kb1 {[%emt 0:05:33]} Nc5 {[%emt 0:03:05]} 21. Qc2 {[%emt 0:01:07]} Na4 {[%emt 0:02:19]} 22. Rxd8+ {[%emt 0:00:05]} Rxd8 {[%emt 0:00:23]} 23. Rd1 {[%emt 0:00:05]} Rc8 {[%emt 0:03:41]} 24. Nd4 {[%emt 0:07:29]} Qb7 {[%emt 0:10:16]} 25. Bg4 {[%emt 0:03:51]} Rc7 {[%emt 0:02:41]} 26. h5 {[%emt 0:00:13]} Kf8 {[%emt 0:09:04]} 27. Nf3 {[%emt 0:14:23]} Nxc3+ {[%emt 0:05:21]} 28. bxc3 {[%emt 0:00:17]} Rxc3 {[%emt 0:00:07]} 29. Qe2 {[%emt 0:00:02]} Bc7 {[%emt 0:06:08]} 30. Nd4 {[%emt 0:02:45]} b4 {[%emt 0:01:05]} 31. e5 {[%emt 0:00:18]} Bb6 {[%emt 0:02:00]} 32. e6 {[%emt 0:02:22]} Bxd4 {[%emt 0:00:25]} 33. Rxd4 {[%emt 0:00:05]} Qc7 {[%emt 0:00:50]} 34. Qd2 {[%emt 0:00:30]} gxh5 {[%emt 0:01:07]} 35. Rd8+ {[%emt 0:00:04]} Kg7 {[%emt 0:00:07]} 36. Qd4+ {[%emt 0:00:04]} 1-0